bitfinex/quotes_BTCUSD_20220202
["timestamp","ask_amount","ask_price","bid_price","bid_amount"]
[1643815597400,0.57219737,37623.0,37617.0,0.0003436]
[1643815598354,0.67219737,37623.0,37615.0,0.01933531]
[1643815598551,0.67219737,37623.0,37617.0,0.09479161]
[1643815598750,0.67219737,37623.0,37617.0,0.32352404]
[1643815599351,0.60574046,37623.0,37617.0,0.32352404]
[1643815599556,0.60574046,37623.0,37617.0,0.32318044]
[1643815599753,0.60574046,37623.0,37617.0,0.09444801]
[1643815600954,0.92251092,37623.0,37617.0,0.09478732]
[1643815601356,0.60574046,37623.0,37617.0,0.09478732]
[1643815601554,0.60074046,37623.0,37617.0,0.09478732]
[1643815602898,0.60074046,37623.0,37617.0,0.43106322]
[1643815603098,0.91103463,37623.0,37617.0,0.09444801]
[1643815603298,0.9774944,37623.0,37617.0,0.09478732]
[1643815603497,0.9774944,37623.0,37617.0,0.00033931]
[1643815603897,0.97717447,37623.0,37617.0,0.00033931]
[1643815604299,0.97717447,37623.0,37616.0,0.3362759]
[1643815604500,0.6668803,37623.0,37617.0,0.00033931]
[1643815604703,0.70270488,37623.0,37617.0,0.00033931]
[1643815604898,1.01394579,37623.0,37617.0,0.00033931]
[1643815605301,0.1,37622.0,37617.0,0.00033931]
[1643815605541,0.1,37622.0,37614.0,0.33635282]
[1643815605542,0.32709994,37621.0,37614.0,0.33635282]
[1643815605740,0.3727542,37621.0,37617.0,0.00033931]
[1643815605944,0.066463,37620.0,37614.0,0.3362759]
[1643815606140,0.066463,37620.0,37613.0,0.49223228]
[1643815606141,0.066463,37620.0,37615.0,0.29381522]
[1643815606544,0.27795422,37617.0,37615.0,0.29381522]
[1643815607148,0.05,37622.0,37615.0,0.29381522]
[1643815607447,0.066458,37621.0,37614.0,0.3923988]
[1643815607652,0.066458,37621.0,37617.0,0.39232188]
[1643815607844,0.15298,37625.0,37619.0,0.39232188]
[1643815608049,0.15298,37625.0,37623.0,0.23921206]
[1643815608246,0.15298,37625.0,37623.0,0.38100427]
[1643815609300,0.0669928,37626.0,37623.0,0.60506002]
[1643815609902,0.0669928,37626.0,37623.0,0.22405575]
[1643815610111,0.0669928,37626.0,37621.0,0.08613972]
[1643815610301,0.066443,37626.0,37619.0,0.4118195]
[1643815610502,0.0669928,37626.0,37619.0,0.4118195]
[1643815610703,0.30583355,37625.0,37619.0,0.01949762]
[1643815610903,0.0669928,37626.0,37619.0,0.01949762]
[1643815611305,0.30721894,37623.0,37619.0,0.01949762]
[1643815611504,0.21501292,37622.0,37619.0,0.01949762]
[1643815611701,0.21501292,37622.0,37619.0,0.03012062]
[1643815611903,0.066454,37623.0,37619.0,0.03012062]
[1643815612103,0.066454,37623.0,37618.0,0.99358356]
[1643815612402,0.066454,37623.0,37618.0,0.47555096]
[1643815612943,0.066454,37623.0,37618.0,0.08322908]
[1643815612944,0.2318229,37620.0,37618.0,0.08322908]
[1643815613145,0.2318229,37620.0,37616.0,0.39232188]
[1643815613345,0.31024439,37619.0,37616.0,0.39232188]
[1643815613548,0.31024439,37619.0,37615.0,0.00033914]
[1643815613745,0.0381398,37619.0,37615.0,0.00033914]
[1643815613948,0.0381398,37619.0,37613.0,7.692e-05]
[1643815614146,0.25319594,37614.0,37613.0,0.10041372]
[1643815614344,0.39199708,37621.0,37613.0,0.10041372]
[1643815614547,0.115366,37621.0,37614.0,0.33755218]
[1643815614747,0.45846308,37621.0,37614.0,0.33755218]
[1643815614954,0.05,37601.0,37583.0,0.82826588]
[1643815615164,0.05,37601.0,37577.0,0.47778273]
[1643815615165,1.64205098,37584.0,37572.0,0.04742682]
[1643815615356,1.64205098,37584.0,37556.0,0.1013]
[1643815615357,0.05,37566.0,37554.0,0.47067541]
[1643815615549,0.05,37555.0,37550.0,0.91244336]
[1643815615754,0.7113,37551.0,37550.0,0.066507]
[1643815615959,0.7113,37551.0,37539.0,0.002]
[1643815615960,0.2500583,37550.0,37543.0,0.33724812]
[1643815616150,0.6113,37544.0,37539.0,0.102]
[1643815616346,0.6113,37544.0,37536.0,3.17774418]
[1643815616347,0.09784614,37544.0,37536.0,3.17774418]
[1643815616550,0.8037,37548.0,37531.0,0.33110578]
[1643815616809,0.012,37553.0,37547.0,0.1]
[1643815617005,0.012,37553.0,37521.0,0.510534]
[1643815617006,0.34883346,37542.0,37525.0,0.08496907]
[1643815617213,1.7e-05,37537.0,37526.0,0.50522731]
[1643815617407,0.108244,37537.0,37532.0,0.07961395]
[1643815617605,0.66627949,37551.0,37539.0,0.07870955]
[1643815617809,0.1,37543.0,37528.0,0.9]
[1643815618004,0.71628,37553.0,37528.0,0.9]
[1643815618005,1.28713119,37560.0,37534.0,0.8621378]
[1643815618209,0.1587,37576.0,37540.0,0.05]
[1643815618210,0.1,37571.0,37540.0,0.05]
[1643815618411,0.1326,37567.0,37543.0,0.1]
[1643815618607,0.5,37568.0,37544.0,0.39199708]
[1643815618608,0.066585,37560.0,37544.0,0.39199708]
[1643815618804,0.26637439,37562.0,37558.0,0.07836264]
[1643815618805,0.19976,37559.0,37558.0,0.07836264]
[1643815619005,0.07461736,37558.0,37555.0,0.0489]
[1643815619205,0.03550544,37567.0,37557.0,0.27548439]
[1643815619411,0.03550544,37567.0,37558.0,0.0489]
[1643815619412,0.03812354,37566.0,37558.0,0.0489]
[1643815619708,0.10198,37564.0,37559.0,0.05]
[1643815619908,0.25496,37564.0,37560.0,0.34309708]
[1643815620108,0.03458,37563.0,37562.0,0.6]
[1643815620312,0.25496,37564.0,37562.0,0.6]
[1643815620550,0.25496,37564.0,37562.0,0.05]
[1643815620750,0.25496,37564.0,37563.0,0.0489]
[1643815620949,0.05198,37564.0,37563.0,0.450036]
[1643815621151,0.01,37589.0,37564.0,0.9]
[1643815621360,0.39180001,37601.0,37592.0,0.15]
[1643815621561,0.41324362,37604.0,37599.0,0.1]
[1643815621754,3.40324966,37629.0,37608.0,0.05]
[1643815621755,0.00054838,37609.0,37608.0,0.05]
[1643815621973,0.43148391,37628.0,37626.0,0.10492347]
[1643815622158,0.43148391,37628.0,37609.0,0.9]
[1643815622159,3.39648,37629.0,37618.0,0.02662]
[1643815622452,0.9,37626.0,37624.0,0.132864]
[1643815622651,0.9,37626.0,37623.0,4e-06]
[1643815622652,1.24324907,37625.0,37623.0,4e-06]
[1643815622855,0.51937,37625.0,37616.0,0.0489]
[1643815623053,0.18023285,37624.0,37617.0,0.4046521]
[1643815623353,0.009437,37627.0,37617.0,0.4046521]
[1643815623354,0.18023285,37636.0,37620.0,0.24]
[1643815623550,0.18023285,37636.0,37621.0,0.48391713]
[1643815623551,0.009437,37631.0,37621.0,0.48391713]
[1643815623750,0.10198,37636.0,37630.0,0.23254499]
[1643815623958,0.10198,37636.0,37631.0,0.44143834]
[1643815624202,0.111417,37636.0,37632.0,0.451136]
[1643815624501,0.05026969,37647.0,37634.0,0.05]
[1643815624502,0.009437,37647.0,37634.0,0.05]
[1643815624699,0.009437,37647.0,37646.0,0.09242413]
[1643815624901,0.009437,37647.0,37632.0,0.1]
[1643815624902,0.26420233,37647.0,37640.0,0.24]
[1643815625101,0.26420233,37647.0,37633.0,0.23123567]
[1643815625102,0.25314237,37641.0,37633.0,0.23123567]
[1643815625302,0.25314237,37641.0,37632.0,0.1]
[1643815625303,0.72049,37646.0,37632.0,0.1]
[1643815625505,0.76210692,37646.0,37632.0,0.1]
[1643815625702,0.3272407,37642.0,37631.0,0.0489]
[1643815625906,0.02058,37641.0,37633.0,0.10437166]
[1643815626098,0.02058,37641.0,37627.0,0.1]
[1643815626403,0.03608273,37638.0,37627.0,0.1]
[1643815626600,0.29958249,37636.0,37627.0,0.1]
[1643815626801,0.32160249,37636.0,37627.0,0.1]
[1643815627002,0.32160249,37636.0,37629.0,0.24140596]
[1643815627003,0.3546506,37636.0,37629.0,0.24140596]
[1643815627200,0.32160249,37636.0,37634.0,0.08387988]
[1643815627402,0.02202,37636.0,37634.0,0.08387988]
[1643815627601,0.02202,37636.0,37630.0,0.1]
[1643815627802,0.0005542,37634.0,37630.0,0.1]
[1643815628060,0.02209,37633.0,37625.0,0.01787315]
[1643815628249,0.02209,37633.0,37623.0,0.01947107]
[1643815628250,0.083525,37633.0,37623.0,0.01947107]
[1643815628751,0.083525,37633.0,37630.0,0.09089488]
[1643815628948,0.2943353,37632.0,37630.0,0.09089488]
[1643815629147,0.2943353,37632.0,37623.0,0.11947107]
[1643815629148,0.2943353,37632.0,37624.0,0.35860892]
[1643815629349,0.2943353,37632.0,37625.0,0.1]
[1643815629549,0.46647501,37632.0,37623.0,0.01947107]
[1643815629752,0.066447,37625.0,37623.0,0.01947107]
[1643815629949,0.04591947,37629.0,37623.0,0.01947107]
[1643815630150,0.27422085,37625.0,37623.0,0.01947107]
[1643815630349,0.8,37624.0,37617.0,0.01880103]
[1643815630554,0.41770064,37624.0,37617.0,0.01880103]
[1643815630752,0.01947107,37624.0,37617.0,0.01880103]
[1643815631250,0.23861618,37618.0,37617.0,0.01880103]
[1643815631449,0.03422532,37621.0,37617.0,0.01880103]
[1643815631696,0.00055424,37622.0,37617.0,0.01880103]
[1643815631899,0.25055424,37622.0,37621.0,0.10499029]
[1643815632096,0.00055424,37622.0,37621.0,0.10499029]
[1643815632295,0.42,37623.0,37617.0,0.01880103]
[1643815632496,0.65366006,37623.0,37617.0,0.01880103]
[1643815632696,0.32577301,37619.0,37617.0,0.01880103]
[1643815632900,0.93978347,37618.0,37617.0,0.01880103]
[1643815633101,0.9,37617.0,37608.0,0.0178812]
[1643815633296,0.63120728,37616.0,37606.0,0.00034148]
[1643815633497,0.63120728,37616.0,37600.0,7.721e-05]
[1643815633498,0.58192933,37616.0,37600.0,7.721e-05]
[1643815633698,0.10340249,37614.0,37600.0,7.721e-05]
[1643815633899,1.01119819,37607.0,37606.0,0.00034148]
[1643815634100,0.61009819,37607.0,37606.0,0.00034148]
[1643815634296,0.71740616,37607.0,37606.0,0.00034148]
[1643815634496,0.71700994,37607.0,37606.0,0.00034148]
[1643815634696,0.71700994,37607.0,37599.0,0.35709177]
[1643815634997,0.71009819,37607.0,37605.0,0.10592469]
[1643815635196,0.1489,37607.0,37605.0,0.00341929]
[1643815635471,0.0989,37607.0,37605.0,0.00341929]
[1643815635674,0.0989,37607.0,37605.0,0.24890057]
[1643815635871,0.05,37607.0,37606.0,0.351136]
[1643815636672,0.05,37607.0,37605.0,0.0031]
[1643815636873,0.05,37607.0,37603.0,7.721e-05]
[1643815636874,0.8,37604.0,37603.0,7.721e-05]
[1643815637071,0.8,37604.0,37596.0,0.001]
[1643815637072,0.8,37604.0,37599.0,7.721e-05]
[1643815637270,0.30565485,37602.0,37599.0,7.721e-05]
[1643815637473,0.30565485,37602.0,37598.0,0.0011]
[1643815637672,0.133002,37602.0,37599.0,0.09149421]
[1643815637973,0.0665,37603.0,37599.0,0.09149421]
[1643815638175,0.0665,37603.0,37599.0,0.09157142]
[1643815638572,0.0665,37603.0,37599.0,0.0001581]
[1643815638774,1.25301256,37600.0,37599.0,0.0001581]
[1643815638973,1.25301256,37600.0,37599.0,8.089e-05]
[1643815639399,1.49351883,37600.0,37599.0,8.089e-05]
[1643815639595,1.49351883,37600.0,37598.0,0.0011]
[1643815639596,0.59351883,37600.0,37598.0,0.0011]
[1643815639795,0.59351883,37600.0,37598.0,0.00136885]
[1643815639996,0.30700727,37600.0,37598.0,0.00136885]
[1643815640395,0.066501,37600.0,37598.0,0.00136885]
[1643815640803,0.0489,37608.0,37598.0,0.0011]
[1643815641003,0.35968943,37610.0,37598.0,0.00117721]
[1643815641198,0.00053261,37609.0,37605.0,0.09878123]
[1643815641500,0.00053261,37609.0,37599.0,7.721e-05]
[1643815641899,0.32335775,37610.0,37599.0,7.721e-05]
[1643815642099,0.10036178,37614.0,37610.0,0.03699221]
[1643815642300,0.31792632,37613.0,37610.0,0.27714221]
[1643815642499,0.9,37612.0,37600.0,0.01796217]
[1643815642705,0.9,37612.0,37600.0,7.721e-05]
[1643815642706,0.69834265,37611.0,37600.0,7.721e-05]
[1643815642949,0.133018,37608.0,37598.0,0.0011]
[1643815643256,0.09884545,37606.0,37598.0,0.1032]
[1643815643460,0.09884545,37606.0,37596.0,0.001]
[1643815643461,0.05,37603.0,37596.0,0.001]
[1643815643750,0.56801276,37602.0,37596.0,0.001]
[1643815643947,0.56801276,37602.0,37587.0,0.09606645]
[1643815643948,0.09525481,37601.0,37587.0,0.09606645]
[1643815644148,0.38368268,37600.0,37587.0,0.09606645]
[1643815644348,0.09756076,37598.0,37585.0,0.04451194]
[1643815644552,0.29488099,37592.0,37585.0,0.04451194]
[1643815644750,0.62986953,37591.0,37585.0,0.01789194]
[1643815644948,0.58209207,37591.0,37585.0,0.01789194]
[1643815645148,0.23209207,37591.0,37585.0,0.01789194]
[1643815645351,0.04627218,37597.0,37590.0,0.1850221]
[1643815645552,0.03481595,37599.0,37594.0,0.21967855]
[1643815645850,0.0365337,37600.0,37594.0,0.21967855]
[1643815646055,0.066498,37603.0,37594.0,0.56965817]
[1643815646249,0.04735745,37602.0,37595.0,0.08162199]
[1643815646700,0.02114883,37607.0,37595.0,0.08162199]
[1643815646701,7.05680586,37600.0,37596.0,0.37210402]
[1643815646911,0.496477,37618.0,37598.0,0.9]
[1643815647099,0.03366121,37617.0,37615.0,0.07533602]
[1643815647299,0.03870947,37617.0,37615.0,0.07533602]
[1643815647500,0.34669052,37610.0,37606.0,0.02114883]
[1643815647698,0.2428039,37610.0,37607.0,0.21409519]
[1643815647898,0.68713262,37616.0,37607.0,0.21409519]
[1643815648100,0.69395997,37616.0,37606.0,0.02114883]
[1643815648301,0.16262094,37614.0,37606.0,0.02148919]
[1643815648500,0.00055377,37611.0,37607.0,0.09358018]
[1643815649102,0.00055377,37611.0,37609.0,0.25830526]
[1643815649303,0.05,37612.0,37610.0,0.35346207]
[1643815649501,0.05,37616.0,37611.0,0.351136]
[1643815649701,0.05,37616.0,37610.0,0.6549176]
[1643815649702,0.00055377,37611.0,37610.0,0.6549176]
[1643815649903,0.00055377,37611.0,37610.0,0.93065026]
[1643815650100,0.00055377,37611.0,37610.0,0.67333641]
[1643815650303,0.00055377,37611.0,37610.0,0.32220041]
[1643815650549,0.81474159,37618.0,37610.0,0.32220041]
[1643815650745,0.00055377,37612.0,37611.0,0.35673251]
[1643815650945,0.00055377,37612.0,37610.0,0.32220041]
[1643815651146,0.00055377,37612.0,37611.0,1.25240928]
[1643815651350,0.066469,37621.0,37611.0,1.25240928]
[1643815651351,0.066457,37627.0,37617.0,0.05]
[1643815651549,9.0,37634.0,37615.0,0.0447]
[1643815651954,0.32268877,37633.0,37615.0,0.0447]
[1643815652149,0.32268877,37633.0,37619.0,0.23069562]
[1643815652150,0.29625171,37629.0,37619.0,0.23069562]
[1643815652351,0.31246184,37625.0,37615.0,0.0447]
[1643815652653,0.3509413,37624.0,37613.0,0.1]
[1643815652850,0.10147371,37626.0,37611.0,0.02019841]
[1643815653050,0.3509413,37628.0,37610.0,0.01808179]
[1643815653252,0.00045168,37621.0,37610.0,0.01808179]
[1643815653450,0.00045168,37621.0,37620.0,0.29727302]
[1643815653653,0.00045168,37621.0,37613.0,0.5]
[1643815654052,0.00045168,37621.0,37614.0,0.27441307]
[1643815654300,0.05,37621.0,37614.0,0.27441307]
[1643815654501,0.00055375,37619.0,37614.0,0.27441307]
[1643815654803,0.00055375,37619.0,37615.0,0.27564178]
[1643815655003,0.00749303,37640.0,37616.0,1.30242286]
[1643815655204,9.0,37634.0,37616.0,0.5447]
[1643815655402,0.08828634,37625.0,37616.0,0.5447]
[1643815656000,0.37642394,37619.0,37616.0,0.5447]
[1643815656200,0.35242286,37624.0,37617.0,0.1]
[1643815656405,0.42,37624.0,37617.0,0.1]
[1643815656600,0.47,37624.0,37617.0,0.1]
[1643815656799,0.465,37624.0,37617.0,0.1]
[1643815657002,0.42,37624.0,37617.0,0.1]
[1643815657202,0.42,37626.0,37617.0,0.2]
[1643815657401,0.42,37626.0,37623.0,0.25867692]
[1643815657601,0.42,37626.0,37620.0,0.0447]
[1643815657800,0.29323527,37621.0,37620.0,0.0447]
[1643815658054,0.29323527,37621.0,37620.0,0.11893377]
[1643815658444,0.42045126,37626.0,37620.0,1.31893377]
[1643815658745,0.47045126,37626.0,37622.0,0.23987256]
[1643815658950,0.47045126,37626.0,37621.0,0.1]
[1643815659145,0.47,37626.0,37621.0,0.1]
[1643815659346,0.00055373,37625.0,37622.0,0.36749994]
[1643815659546,9.0,37634.0,37624.0,0.1]
[1643815659547,49.995,37628.0,37624.0,0.1]
[1643815659747,49.995,37628.0,37625.0,0.0447]
[1643815660149,49.61929303,37628.0,37627.0,1.1]
[1643815660348,49.0227539,37628.0,37627.0,2.17427264]
[1643815660548,49.0227539,37628.0,37627.0,1.87184978]
[1643815660747,49.0227539,37628.0,37627.0,3.84023389]
[1643815660946,49.0227539,37628.0,37627.0,2.74023389]
[1643815661149,49.0227539,37628.0,37627.0,3.26685389]
[1643815661348,49.0227539,37628.0,37627.0,3.16638476]
[1643815661999,49.0227539,37628.0,37627.0,4.26638476]
[1643815662195,49.0227539,37628.0,37627.0,3.1716066]
[1643815662495,49.0227539,37628.0,37627.0,3.25139302]
[1643815662695,49.02252595,37628.0,37627.0,4.45139302]
[1643815662998,48.03047336,37628.0,37627.0,4.51256718]
[1643815663198,48.03012665,37628.0,37627.0,4.53162687]
[1643815663396,48.02954989,37628.0,37627.0,4.43278076]
[1643815663797,48.02954989,37628.0,37627.0,4.42738076]
[1643815663998,36.3477567,37628.0,37627.0,4.42738076]
[1643815664208,34.85779485,37628.0,37627.0,4.42738076]
[1643815664396,32.31379485,37628.0,37627.0,4.42738076]
[1643815664799,32.31379485,37628.0,37627.0,2.18317938]
[1643815665002,32.31379485,37628.0,37627.0,2.11678338]
[1643815665449,32.31379485,37628.0,37627.0,2.07218338]
[1643815665944,19.13253461,37628.0,37627.0,3.72218338]
[1643815666150,5.31129653,37628.0,37627.0,2.86341022]
[1643815666347,9.0,37634.0,37632.0,0.05]
[1643815666546,8.97729941,37634.0,37633.0,0.967056]
[1643815666748,8.97721846,37634.0,37633.0,2.54281054]
[1643815666944,8.97721846,37634.0,37633.0,3.1422968]
[1643815666945,8.6353103,37634.0,37633.0,3.1422968]
[1643815667154,0.00180205,37646.0,37645.0,0.05]
[1643815667346,0.4201737,37661.0,37645.0,0.427756]
[1643815667544,0.4201737,37661.0,37646.0,0.351136]
[1643815667746,0.01,37649.0,37648.0,0.5]
[1643815667946,0.01,37649.0,37648.0,0.945836]
[1643815668145,0.00976902,37649.0,37648.0,0.995836]
[1643815668544,0.50976902,37649.0,37648.0,0.995836]
[1643815668744,0.50976902,37649.0,37648.0,0.895836]
[1643815668745,0.78019617,37649.0,37648.0,0.895836]
[1643815668948,0.20555243,37647.0,37635.0,0.35242286]
[1643815669204,0.0447,37648.0,37635.0,0.35242286]
[1643815669205,0.3079313,37648.0,37636.0,0.351136]
[1643815669412,0.0447,37648.0,37639.0,0.05]
[1643815669606,0.0447,37648.0,37640.0,0.422456]
[1643815669806,0.0447,37648.0,37641.0,0.351136]
[1643815670005,0.00055522,37645.0,37642.0,0.0447]
[1643815670206,0.00055522,37645.0,37643.0,0.351136]
[1643815670408,0.00055522,37645.0,37643.0,0.395836]
[1643815670409,0.55909099,37645.0,37643.0,0.395836]
[1643815670609,0.88157067,37645.0,37644.0,0.451136]
[1643815670808,0.70055522,37645.0,37644.0,0.1]
[1643815671007,0.50976902,37649.0,37644.0,0.1]
[1643815671008,0.00976902,37649.0,37644.0,0.1447]
[1643815671211,0.00976902,37649.0,37645.0,0.377756]
[1643815671212,0.25055521,37646.0,37645.0,0.377756]
[1643815671409,0.25055521,37646.0,37645.0,0.422456]
[1643815671608,0.25055521,37646.0,37645.0,0.522456]
[1643815671807,0.25055521,37646.0,37645.0,0.572456]
[1643815672210,0.3,37646.0,37645.0,0.522456]
[1643815672411,0.3,37646.0,37645.0,0.451136]
[1643815672611,0.95,37646.0,37645.0,0.451136]
[1643815672809,0.95,37646.0,37645.0,0.1]
[1643815673255,0.3,37646.0,37641.0,0.1]
[1643815673456,0.3,37646.0,37642.0,0.851136]
[1643815673655,0.3,37646.0,37643.0,0.351136]
[1643815673656,0.25,37646.0,37643.0,0.351136]
[1643815673855,0.29976492,37646.0,37643.0,0.501136]
[1643815674058,0.29976492,37646.0,37644.0,0.351136]
[1643815674258,0.29976492,37646.0,37645.0,0.12662]
[1643815674457,0.29976492,37646.0,37645.0,0.522456]
[1643815675059,0.29968384,37646.0,37645.0,0.522456]
[1643815675364,0.29968384,37646.0,37645.0,0.572456]
[1643815675559,0.25,37646.0,37645.0,0.572456]
[1643815675763,0.25008841,37646.0,37645.0,0.522456]
[1643815676560,0.45008841,37646.0,37645.0,0.522456]
[1643815677199,0.25008841,37646.0,37645.0,0.572456]
[1643815677397,0.45008841,37646.0,37645.0,1.072456]
[1643815677594,0.45008841,37646.0,37645.0,1.43814254]
[1643815677794,0.45008841,37646.0,37645.0,1.072456]
[1643815677993,0.45008841,37646.0,37645.0,1.022456]
[1643815678194,0.25008841,37646.0,37645.0,1.072456]
[1643815678393,0.55008841,37646.0,37645.0,1.43164607]
[1643815678695,0.55008841,37646.0,37645.0,1.022456]
[1643815679395,0.54986536,37646.0,37645.0,1.022456]
[1643815679994,0.24302191,37646.0,37645.0,1.022456]
[1643815680196,8.841e-05,37646.0,37645.0,1.58589094]
[1643815680658,0.00017023,37649.0,37647.0,0.05]
[1643815680855,0.00017023,37649.0,37648.0,1.40581354]
[1643815681057,0.00017023,37649.0,37648.0,1.23283036]
[1643815681257,0.00017023,37649.0,37648.0,1.33283036]
[1643815681456,0.00017023,37649.0,37648.0,1.072456]
[1643815682255,0.00017023,37649.0,37648.0,1.117056]
[1643815682462,0.00017023,37649.0,37648.0,1.867056]
[1643815682659,0.2200737,37661.0,37658.0,0.05]
[1643815682858,0.2200737,37661.0,37660.0,0.02662]
[1643815683057,0.2200737,37661.0,37660.0,0.422456]
[1643815683255,0.22060219,37661.0,37660.0,0.422456]
[1643815683456,0.001,37663.0,37660.0,0.422456]
[1643815683655,0.00211365,37667.0,37661.0,0.75079972]
[1643815683855,0.00211365,37667.0,37662.0,0.395836]
[1643815684056,0.00211365,37667.0,37663.0,0.851136]
[1643815684303,0.27754445,37681.0,37664.0,0.69704779]
[1643815684602,0.0011,37686.0,37674.0,0.0946]
[1643815684603,7.114e-05,37679.0,37674.0,0.0946]
[1643815684807,7.114e-05,37679.0,37675.0,0.82211972]
[1643815685008,0.0011,37686.0,37676.0,0.351136]
[1643815685203,0.0011,37686.0,37677.0,0.0447]
[1643815685409,0.0011,37686.0,37678.0,0.401136]
[1643815685610,0.00127381,37685.0,37682.0,0.22802581]
[1643815685801,0.00127381,37685.0,37684.0,0.02662]
[1643815686004,0.00127381,37685.0,37684.0,0.377756]
[1643815686202,0.00127381,37685.0,37684.0,0.495836]
[1643815686203,0.0011,37685.0,37684.0,0.495836]
[1643815686419,0.0011,37685.0,37684.0,0.395836]
[1643815686605,0.0011,37685.0,37676.0,0.58658382]
[1643815686802,0.0011,37685.0,37677.0,0.350553]
[1643815686803,0.00127381,37685.0,37677.0,0.350553]
[1643815687405,0.00127381,37685.0,37678.0,0.07132]
[1643815687406,0.21758679,37685.0,37678.0,0.07132]
[1643815687609,0.0054,37681.0,37679.0,0.350553]
[1643815687807,0.0054,37682.0,37680.0,0.1]
[1643815688051,0.42,37683.0,37680.0,0.1]
[1643815688254,0.09288019,37681.0,37680.0,0.1]
[1643815688452,1.03748019,37681.0,37680.0,0.350553]
[1643815688651,1.03748019,37681.0,37678.0,0.08657759]
[1643815688652,0.95,37681.0,37678.0,0.08657759]
[1643815689156,0.42017381,37683.0,37678.0,0.11319759]
[1643815689356,0.00055368,37681.0,37679.0,0.350553]
[1643815689556,0.00017381,37684.0,37682.0,0.05]
[1643815689752,0.00017381,37684.0,37679.0,0.395253]
[1643815689753,0.00221439,37687.0,37685.0,0.05]
[1643815689954,1.439e-05,37687.0,37686.0,0.395253]
[1643815690356,0.4254,37696.0,37686.0,0.545253]
[1643815690357,0.0054,37691.0,37686.0,0.545253]
[1643815690553,0.0054,37691.0,37687.0,0.350553]
[1643815690757,0.42,37696.0,37687.0,0.521873]
[1643815690758,0.00069946,37694.0,37687.0,0.521873]
[1643815691055,0.42,37696.0,37688.0,0.350553]
[1643815691056,0.41530423,37696.0,37688.0,0.350553]
[1643815691251,0.41530423,37696.0,37689.0,0.1447]
[1643815691453,0.41530423,37696.0,37690.0,0.350553]
[1643815691454,0.0054,37691.0,37690.0,0.350553]
[1643815691704,0.09002021,37692.0,37690.0,0.395206]
[1643815691903,0.94991885,37694.0,37690.0,0.0447]
[1643815692306,0.94991885,37694.0,37691.0,0.350506]
[1643815692509,0.0054,37693.0,37682.0,0.22738]
[1643815692709,0.94991885,37694.0,37681.0,0.1]
[1643815692710,0.0054,37688.0,37681.0,0.1]
[1643815692906,0.09064796,37692.0,37685.0,0.00036623]
[1643815693307,0.23755014,37689.0,37685.0,0.00036623]
[1643815693707,0.0054,37686.0,37685.0,0.00036623]
[1643815693913,0.0054,37686.0,37678.0,0.11319759]
[1643815693914,0.28528287,37679.0,37678.0,0.08657759]
[1643815694112,0.28528287,37679.0,37668.0,0.65573258]
[1643815694310,0.0054,37670.0,37668.0,0.62911258]
[1643815694510,0.0054,37670.0,37669.0,0.350506]
[1643815694709,0.0054,37670.0,37668.0,0.62911258]
[1643815695313,0.09148667,37670.0,37668.0,0.62911258]
[1643815695552,0.09148667,37670.0,37660.0,0.02662]
[1643815695553,0.47108709,37663.0,37660.0,0.02662]
[1643815695756,0.47108709,37663.0,37655.0,0.03536338]
[1643815695757,0.30232359,37660.0,37655.0,0.03536338]
[1643815695955,0.0054,37658.0,37655.0,0.02662]
[1643815696152,0.00517554,37656.0,37655.0,0.02662]
[1643815696752,0.30232359,37660.0,37655.0,0.02662]
[1643815696957,0.00517554,37669.0,37656.0,0.350506]
[1643815697153,0.1,37676.0,37657.0,0.02662]
[1643815697353,0.03502073,37679.0,37657.0,0.02662]
[1643815697354,0.00517554,37660.0,37657.0,0.02662]
[1643815697555,0.00517554,37660.0,37658.0,0.350506]
[1643815697752,0.44197337,37670.0,37665.0,0.00036551]
[1643815697956,0.00517554,37667.0,37665.0,0.00036551]
[1643815698151,0.38275469,37668.0,37665.0,0.00036551]
[1643815698352,0.00517554,37667.0,37665.0,0.00036551]
[1643815698554,0.00517554,37667.0,37665.0,5.51e-06]
[1643815698752,0.450506,37666.0,37654.0,0.00874364]
[1643815698952,0.50203874,37665.0,37664.0,3.28e-06]
[1643815699203,0.00017418,37667.0,37664.0,3.28e-06]
[1643815699400,0.10517554,37665.0,37664.0,3.28e-06]
[1643815699601,0.7813448,37665.0,37664.0,3.28e-06]
[1643815699801,0.04757904,37664.0,37653.0,0.0087439]
[1643815700000,0.04757904,37664.0,37645.0,0.02667]
[1643815700001,0.26149336,37650.0,37645.0,0.02667]
[1643815701001,0.48685684,37664.0,37645.0,0.02667]
[1643815701202,0.07537429,37657.0,37645.0,0.02667]
[1643815701403,0.00017418,37668.0,37648.0,0.02662]
[1643815701703,0.00517554,37663.0,37648.0,0.02662]
[1643815701901,0.31310638,37658.0,37649.0,0.350506]
[1643815702102,0.31310638,37658.0,37649.0,0.466873]
[1643815702304,0.55,37651.0,37650.0,0.450506]
[1643815703549,0.00017418,37664.0,37650.0,0.9243595]
[1643815703745,0.00017418,37666.0,37651.0,0.350506]
[1643815703943,0.00017418,37666.0,37651.0,0.35]
[1643815704144,0.00017418,37666.0,37652.0,0.450506]
[1643815704344,0.00517554,37655.0,37652.0,0.1]
[1643815704544,0.00517554,37655.0,37653.0,0.350506]
[1643815704744,0.00517554,37655.0,37654.0,0.1]
[1643815704947,0.00517554,37655.0,37654.0,0.450506]
[1643815705146,0.00517554,37655.0,37654.0,0.1]
[1643815705450,0.08061309,37656.0,37652.0,0.00036334]
[1643815705749,0.00517554,37653.0,37652.0,0.00036334]
[1643815706144,0.09509571,37648.0,37647.0,0.001]
[1643815706444,0.09509571,37648.0,37647.0,0.351506]
[1643815706916,0.00517554,37651.0,37647.0,0.351506]
[1643815707115,0.00517554,37649.0,37648.0,0.350506]
[1643815707312,0.23302077,37652.0,37648.0,0.350506]
[1643815707513,0.00517554,37649.0,37647.0,0.00136338]
[1643815707712,0.23302077,37652.0,37647.0,0.00136338]
[1643815708114,0.00517554,37654.0,37647.0,0.00136338]
[1643815708421,0.0190487,37662.0,37648.0,0.38454784]
[1643815708614,0.01887452,37662.0,37649.0,0.67304198]
[1643815708813,0.01695228,37662.0,37650.0,0.616106]
[1643815709012,0.01695228,37662.0,37651.0,0.501366]
[1643815709213,0.25045095,37661.0,37652.0,0.616096]
[1643815709513,0.25045095,37661.0,37653.0,0.350506]